[Event "*** Titled Tuesday Blitz AM"]
[Site "Chess.com"]
[Date "2020.01.07"]
[Round "1"]
[White "Cruel_Yaro"]
[Black "MFBerna"]
[Result "0-1"]
[WhiteElo "2811"]
[BlackElo "2457"]
[TimeControl "180+2"]
[EndTime "9:12:14 PST"]
[Termination "MFBerna won on time"]

1. e4 {[%clk 0:03:00.3]} 1... c6 {[%clk 0:03:00.7]} 2. d4 {[%clk 0:03:00]} 2...
d5 {[%clk 0:03:02.2]} 3. e5 {[%clk 0:02:58.6]} 3... Bf5 {[%clk 0:03:02.9]} 4.
Nf3 {[%clk 0:02:58.1]} 4... e6 {[%clk 0:03:03.8]} 5. Be2 {[%clk 0:02:58.6]} 5...
Nd7 {[%clk 0:03:03.7]} 6. O-O {[%clk 0:02:58.9]} 6... h6 {[%clk 0:03:03.4]} 7.
c3 {[%clk 0:02:59.8]} 7... Ne7 {[%clk 0:03:03.6]} 8. Na3 {[%clk 0:03:01.1]} 8...
a6 {[%clk 0:02:59.3]} 9. Nc2 {[%clk 0:03:01.2]} 9... c5 {[%clk 0:02:59.8]} 10.
dxc5 {[%clk 0:02:54]} 10... Nxc5 {[%clk 0:02:53]} 11. Ncd4 {[%clk 0:02:54.5]}
11... Be4 {[%clk 0:02:49.9]} 12. Be3 {[%clk 0:02:52.9]} 12... Nf5 {[%clk
0:02:45]} 13. Nxf5 {[%clk 0:02:50.2]} 13... Bxf5 {[%clk 0:02:46.9]} 14. Nd4
{[%clk 0:02:50.6]} 14... Bg6 {[%clk 0:02:45.4]} 15. f4 {[%clk 0:02:51.3]} 15...
Be4 {[%clk 0:02:42]} 16. f5 {[%clk 0:02:50.5]} 16... exf5 {[%clk 0:02:36.2]} 17.
Nxf5 {[%clk 0:02:50.4]} 17... Ne6 {[%clk 0:02:30.4]} 18. b4 {[%clk 0:02:01.8]}
18... Qc7 {[%clk 0:02:16.6]} 19. Qa4+ {[%clk 0:01:48.1]} 19... Qd7 {[%clk
0:02:02.2]} 20. Qa5 {[%clk 0:01:31.8]} 20... g6 {[%clk 0:01:54.3]} 21. Nd4
{[%clk 0:01:29.2]} 21... Bg7 {[%clk 0:01:45.3]} 22. Bb5 {[%clk 0:01:26]} 22...
axb5 {[%clk 0:01:41.8]} 23. Qxa8+ {[%clk 0:01:26.2]} 23... Ke7 {[%clk
0:01:39.7]} 24. Qa7 {[%clk 0:01:23.2]} 24... Bxe5 {[%clk 0:01:30.7]} 25. Nxe6
{[%clk 0:01:23.9]} 25... Qxe6 {[%clk 0:01:25.1]} 26. Qxb7+ {[%clk 0:01:23.1]}
26... Kf8 {[%clk 0:01:25.7]} 27. Bd4 {[%clk 0:01:08.6]} 27... Bxd4+ {[%clk
0:01:18.8]} 28. cxd4 {[%clk 0:01:09.5]} 28... Kg7 {[%clk 0:01:15.5]} 29. Qxb5
{[%clk 0:01:09.7]} 29... Qg4 {[%clk 0:01:11.6]} 30. g3 {[%clk 0:01:01.9]} 30...
Rc8 {[%clk 0:00:30.5]} 31. Rf4 {[%clk 0:00:57.7]} 31... Qh3 {[%clk 0:00:19.3]}
32. Qf1 {[%clk 0:00:58]} 32... Qe6 {[%clk 0:00:18.5]} 33. Rf2 {[%clk 0:00:53.4]}
33... h5 {[%clk 0:00:18.1]} 34. Re1 {[%clk 0:00:50.3]} 34... h4 {[%clk
0:00:18.6]} 35. Rf4 {[%clk 0:00:38.5]} 35... hxg3 {[%clk 0:00:19.4]} 36. hxg3
{[%clk 0:00:39.6]} 36... Rc3 {[%clk 0:00:20.1]} 37. Kh2 {[%clk 0:00:35.8]} 37...
g5 {[%clk 0:00:20.2]} 38. Rf2 {[%clk 0:00:31.6]} 38... Qh6+ {[%clk 0:00:20.7]}
39. Qh3 {[%clk 0:00:32.5]} 39... Qg6 {[%clk 0:00:17]} 40. Ref1 {[%clk
0:00:32.7]} 40... g4 {[%clk 0:00:17.6]} 41. Rxf7+ {[%clk 0:00:31]} 41... Qxf7
{[%clk 0:00:16]} 42. Rxf7+ {[%clk 0:00:31.9]} 42... Kxf7 {[%clk 0:00:17.9]} 43.
Qxg4 {[%clk 0:00:32.7]} 43... Rc2+ {[%clk 0:00:19.2]} 44. Kh3 {[%clk 0:00:33.4]}
44... Rxa2 {[%clk 0:00:17.7]} 45. Qf4+ {[%clk 0:00:33.9]} 45... Ke6 {[%clk
0:00:18.7]} 46. Qe5+ {[%clk 0:00:34.7]} 46... Kd7 {[%clk 0:00:19.9]} 47. b5
{[%clk 0:00:35.6]} 47... Ra8 {[%clk 0:00:18.8]} 48. Qg7+ {[%clk 0:00:35.2]}
48... Kc8 {[%clk 0:00:20.1]} 49. Qf8+ {[%clk 0:00:35.9]} 49... Kb7 {[%clk
0:00:21.4]} 50. Qd6 {[%clk 0:00:35.8]} 50... Rc8 {[%clk 0:00:19.3]} 51. Qa6+
{[%clk 0:00:34.3]} 51... Kc7 {[%clk 0:00:21.2]} 52. b6+ {[%clk 0:00:35.3]} 52...
Kd7 {[%clk 0:00:22]} 53. b7 {[%clk 0:00:34.3]} 53... Rh8+ {[%clk 0:00:23]} 54.
Kg4 {[%clk 0:00:34.9]} 54... Rg8+ {[%clk 0:00:24.5]} 55. Kf4 {[%clk 0:00:35.8]}
55... Rf8+ {[%clk 0:00:25.9]} 56. Ke3 {[%clk 0:00:35.5]} 56... Kc7 {[%clk
0:00:27.4]} 57. Qa7 {[%clk 0:00:35.7]} 57... Rb8 {[%clk 0:00:27.5]} 58. g4
{[%clk 0:00:32.4]} 58... Rxb7 {[%clk 0:00:28.6]} 59. Qc5+ {[%clk 0:00:33.2]}
59... Kd8 {[%clk 0:00:29.6]} 60. Qf8+ {[%clk 0:00:32.4]} 60... Kc7 {[%clk
0:00:30.9]} 61. Kf4 {[%clk 0:00:32.3]} 61... Rb8 {[%clk 0:00:29.6]} 62. Qe7+
{[%clk 0:00:32.7]} 62... Kb6 {[%clk 0:00:30.1]} 63. Qd6+ {[%clk 0:00:33.1]}
63... Kb7 {[%clk 0:00:31.4]} 64. g5 {[%clk 0:00:33.7]} 64... Rc8 {[%clk
0:00:28.5]} 65. Qd7+ {[%clk 0:00:31.1]} 65... Rc7 {[%clk 0:00:29.4]} 66. Qb5+
{[%clk 0:00:31.9]} 66... Ka7 {[%clk 0:00:30.5]} 67. Ke5 {[%clk 0:00:30.4]} 67...
Re7+ {[%clk 0:00:28.2]} 68. Kd6 {[%clk 0:00:28.4]} 68... Rg7 {[%clk 0:00:25.4]}
69. Qa5+ {[%clk 0:00:28.4]} 69... Kb7 {[%clk 0:00:26.3]} 70. Qb4+ {[%clk
0:00:29]} 70... Ka7 {[%clk 0:00:27.4]} 71. Qd2 {[%clk 0:00:21]} 71... Rg6+
{[%clk 0:00:26.1]} 72. Kc5 {[%clk 0:00:21.5]} 72... Kb7 {[%clk 0:00:27.1]} 73.
Qf4 {[%clk 0:00:20.2]} 73... Kc8 {[%clk 0:00:26.8]} 74. Qf8+ {[%clk 0:00:20.4]}
74... Kd7 {[%clk 0:00:27.6]} 75. Qf7+ {[%clk 0:00:21.4]} 75... Kd8 {[%clk
0:00:29]} 76. Qf4 {[%clk 0:00:17.6]} 76... Ke7 {[%clk 0:00:28.5]} 77. Qe5+
{[%clk 0:00:18.5]} 77... Kf8 {[%clk 0:00:29.2]} 78. Kb4 {[%clk 0:00:17.1]} 78...
Kf7 {[%clk 0:00:29.9]} 79. Kc3 {[%clk 0:00:17.7]} 79... Kf8 {[%clk 0:00:31.2]}
80. Kd2 {[%clk 0:00:18.3]} 80... Kf7 {[%clk 0:00:32.5]} 81. Ke3 {[%clk
0:00:19.5]} 81... Re6 {[%clk 0:00:33.7]} 82. Qc7+ {[%clk 0:00:19.4]} 82... Re7
{[%clk 0:00:32.4]} 83. Qf4+ {[%clk 0:00:20.3]} 83... Ke8 {[%clk 0:00:30.2]} 84.
Qf6 {[%clk 0:00:19.1]} 84... Bb1+ {[%clk 0:00:22.7]} 85. Kf4 {[%clk 0:00:19.9]}
85... Rf7 {[%clk 0:00:23]} 86. Ke5 {[%clk 0:00:14.8]} 86... Rxf6 {[%clk
0:00:23.8]} 87. gxf6 {[%clk 0:00:15.6]} 87... Be4 {[%clk 0:00:21.3]} 88. Ke6
{[%clk 0:00:16.6]} 88... Kf8 {[%clk 0:00:22.3]} 89. f7 {[%clk 0:00:16.8]} 89...
Bf3 {[%clk 0:00:22.8]} 90. Kf6 {[%clk 0:00:17.1]} 90... Bh5 {[%clk 0:00:23.8]}
0-1

[Event "*** Titled Tuesday Blitz AM"]
[Site "Chess.com"]
[Date "2020.01.07"]
[Round "1"]
[White "djamir"]
[Black "MishkaFighter"]
[Result "1-0"]
[WhiteElo "2741"]
[BlackElo "2380"]
[TimeControl "180+2"]
[EndTime "9:12:25 PST"]
[Termination "djamir won by resignation"]

1. d4 {[%clk 0:03:00.2]} 1... Nf6 {[%clk 0:03:00.3]} 2. Bf4 {[%clk 0:03:00.8]}
2... g6 {[%clk 0:03:01]} 3. e3 {[%clk 0:03:01.2]} 3... Bg7 {[%clk 0:03:02.5]} 4.
Nf3 {[%clk 0:03:00.3]} 4... O-O {[%clk 0:03:04]} 5. h3 {[%clk 0:03:00.5]} 5...
c5 {[%clk 0:03:05.5]} 6. c3 {[%clk 0:03:01.1]} 6... Qb6 {[%clk 0:03:06.8]} 7.
Qb3 {[%clk 0:03:00.6]} 7... d6 {[%clk 0:03:08.1]} 8. Nbd2 {[%clk 0:02:55.7]}
8... cxd4 {[%clk 0:03:05.6]} 9. exd4 {[%clk 0:02:47.8]} 9... Qc7 {[%clk
0:03:06.1]} 10. Be2 {[%clk 0:02:44]} 10... Nc6 {[%clk 0:03:07.2]} 11. O-O {[%clk
0:02:44.4]} 11... Re8 {[%clk 0:03:08.2]} 12. Rfe1 {[%clk 0:02:41.3]} 12... e5
{[%clk 0:03:08.4]} 13. dxe5 {[%clk 0:02:40.3]} 13... dxe5 {[%clk 0:03:10.3]} 14.
Bh2 {[%clk 0:02:42.2]} 14... Be6 {[%clk 0:03:10.7]} 15. Qa4 {[%clk 0:02:39.8]}
15... Rad8 {[%clk 0:03:09.2]} 16. Bc4 {[%clk 0:02:35]} 16... Nd5 {[%clk
0:03:04.6]} 17. Bb5 {[%clk 0:02:25.8]} 17... Nf4 {[%clk 0:02:44.1]} 18. Bxf4
{[%clk 0:02:19]} 18... exf4 {[%clk 0:02:46]} 19. Bxc6 {[%clk 0:02:09.5]} 19...
bxc6 {[%clk 0:02:47.9]} 20. Ne4 {[%clk 0:02:08.7]} 20... Bd5 {[%clk 0:02:44.6]}
21. Rad1 {[%clk 0:02:04.4]} 21... h6 {[%clk 0:02:33.1]} 22. Ned2 {[%clk
0:01:52.2]} 22... g5 {[%clk 0:02:25.5]} 23. Nd4 {[%clk 0:01:36]} 23... Rxe1+
{[%clk 0:02:08.2]} 24. Rxe1 {[%clk 0:01:36.4]} 24... Qb6 {[%clk 0:01:44.2]} 25.
N2b3 {[%clk 0:01:26.7]} 25... Bxd4 {[%clk 0:01:35]} 26. Qxd4 {[%clk 0:01:08.1]}
26... Qxd4 {[%clk 0:01:24.8]} 27. Nxd4 {[%clk 0:01:06.9]} 27... c5 {[%clk
0:01:26]} 28. Nf5 {[%clk 0:01:03.1]} 28... Bxa2 {[%clk 0:01:21]} 29. Ra1 {[%clk
0:00:44.2]} 29... Be6 {[%clk 0:01:19.5]} 30. Nxh6+ {[%clk 0:00:45]} 30... Kg7
{[%clk 0:01:20]} 31. Ng4 {[%clk 0:00:46]} 31... Rd2 {[%clk 0:01:14.8]} 32. b4
{[%clk 0:00:40.2]} 32... c4 {[%clk 0:01:13]} 33. Rxa7 {[%clk 0:00:36.7]} 33...
Rb2 {[%clk 0:01:12.3]} 34. Ra1 {[%clk 0:00:32.6]} 34... Rc2 {[%clk 0:01:11]} 35.
Ra3 {[%clk 0:00:32.2]} 35... Rb2 {[%clk 0:01:12.1]} 36. Ra1 {[%clk 0:00:32.9]}
36... Bf5 {[%clk 0:01:01.6]} 37. Ne5 {[%clk 0:00:30.4]} 37... Be6 {[%clk
0:01:02.8]} 38. Nf3 {[%clk 0:00:30.4]} 38... Kf6 {[%clk 0:00:59.6]} 39. Nd4
{[%clk 0:00:31.4]} 39... Bd5 {[%clk 0:01:00.8]} 40. Ra6+ {[%clk 0:00:32]} 40...
Ke5 {[%clk 0:01:02]} 41. Ra1 {[%clk 0:00:32.8]} 41... Ke4 {[%clk 0:00:59.7]} 42.
Rd1 {[%clk 0:00:30]} 42... Bb7 {[%clk 0:00:55.8]} 43. Nf3 {[%clk 0:00:28.3]}
43... f6 {[%clk 0:00:54.5]} 44. Rd4+ {[%clk 0:00:29.3]} 44... Kf5 {[%clk
0:00:55.1]} 45. Rxc4 {[%clk 0:00:30.7]} 45... Be4 {[%clk 0:00:41.7]} 46. Rc5+
{[%clk 0:00:28.6]} 46... Kg6 {[%clk 0:00:41]} 47. Rc4 {[%clk 0:00:24]} 47... f5
{[%clk 0:00:41.8]} 48. Rd4 {[%clk 0:00:22]} 48... Ba8 {[%clk 0:00:35.4]} 49.
Rd6+ {[%clk 0:00:21.7]} 49... Kh5 {[%clk 0:00:36.4]} 50. Rd8 {[%clk 0:00:20.5]}
50... Be4 {[%clk 0:00:20.4]} 51. Rh8+ {[%clk 0:00:20.5]} 51... Kg6 {[%clk
0:00:21.9]} 52. Rg8+ {[%clk 0:00:21.7]} 52... Kf6 {[%clk 0:00:23.3]} 53. Nxg5
{[%clk 0:00:21.8]} 53... Bd5 {[%clk 0:00:24.7]} 54. Nh7+ {[%clk 0:00:20.7]}
54... Ke5 {[%clk 0:00:25.7]} 55. Re8+ {[%clk 0:00:20.9]} 55... Kd6 {[%clk
0:00:27]} 56. Rd8+ {[%clk 0:00:21.7]} 56... Kc6 {[%clk 0:00:27.5]} 57. Nf6
{[%clk 0:00:22.4]} 57... Be6 {[%clk 0:00:26.8]} 58. Rd4 {[%clk 0:00:23.3]} 58...
f3 {[%clk 0:00:27.3]} 59. gxf3 {[%clk 0:00:24.4]} 59... Rc2 {[%clk 0:00:28.7]}
60. Rd3 {[%clk 0:00:23.9]} 60... Bc4 {[%clk 0:00:28.7]} 61. Re3 {[%clk
0:00:25.2]} 61... f4 {[%clk 0:00:29]} 62. Re4 {[%clk 0:00:26.2]} 62... Rc1+
{[%clk 0:00:29.7]} 63. Kh2 {[%clk 0:00:27.2]} 63... Rxc3 {[%clk 0:00:30]} 64.
Rxf4 {[%clk 0:00:28.5]} 64... Be6 {[%clk 0:00:31.3]} 65. Kg3 {[%clk 0:00:29.2]}
65... Rc1 {[%clk 0:00:32.2]} 66. h4 {[%clk 0:00:28.8]} 66... Rg1+ {[%clk
0:00:32.7]} 67. Kh2 {[%clk 0:00:30.3]} 67... Rf1 {[%clk 0:00:34.3]} 68. Kg2
{[%clk 0:00:31]} 68... Rb1 {[%clk 0:00:35.8]} 69. h5 {[%clk 0:00:32.1]} 69...
Ra1 {[%clk 0:00:36]} 70. h6 {[%clk 0:00:33.3]} 70... Ra8 {[%clk 0:00:37.8]} 71.
Kg3 {[%clk 0:00:33.8]} 71... Kd6 {[%clk 0:00:38.7]} 72. Kh4 {[%clk 0:00:32.3]}
72... Ke5 {[%clk 0:00:39.4]} 73. Kg5 {[%clk 0:00:33.4]} 73... Ra1 {[%clk
0:00:40]} 74. Re4+ {[%clk 0:00:33.7]} 74... Kd6 {[%clk 0:00:40.6]} 75. h7 {[%clk
0:00:34.3]} 75... Rg1+ {[%clk 0:00:41.4]} 76. Rg4 {[%clk 0:00:29.3]} 76... Bxg4
{[%clk 0:00:41.1]} 77. fxg4 {[%clk 0:00:30.5]} 77... Rh1 {[%clk 0:00:41.6]} 78.
Nh5 {[%clk 0:00:31.7]} 78... Rxh5+ {[%clk 0:00:10.1]} 79. gxh5 {[%clk
0:00:31.8]} 1-0

[Event "*** Titled Tuesday Blitz AM"]
[Site "Chess.com"]
[Date "2020.01.07"]
[Round "2"]
[White "WildTricks"]
[Black "ferdipy"]
[Result "1-0"]
[WhiteElo "2506"]
[BlackElo "2246"]
[TimeControl "180+2"]
[EndTime "9:17:06 PST"]
[Termination "WildTricks won by resignation"]

1. Nf3 {[%clk 0:03:01.9]} 1... Nf6 {[%clk 0:02:59.6]} 2. g3 {[%clk 0:03:03.8]}
2... e6 {[%clk 0:02:58.8]} 3. Bg2 {[%clk 0:03:04.2]} 3... d5 {[%clk 0:02:59.6]}
4. O-O {[%clk 0:03:06.1]} 4... c6 {[%clk 0:02:59.9]} 5. c4 {[%clk 0:03:07.5]}
5... Be7 {[%clk 0:03:01]} 6. d4 {[%clk 0:03:08.4]} 6... O-O {[%clk 0:03:02.2]}
7. Qc2 {[%clk 0:03:09.6]} 7... b6 {[%clk 0:03:03.5]} 8. Rd1 {[%clk 0:03:09]}
8... Bb7 {[%clk 0:03:05]} 9. b3 {[%clk 0:03:10]} 9... Na6 {[%clk 0:03:06.3]} 10.
Nc3 {[%clk 0:03:09.8]} 10... Rc8 {[%clk 0:03:05.5]} 11. e4 {[%clk 0:03:10.6]}
11... c5 {[%clk 0:03:05.5]} 12. exd5 {[%clk 0:03:11]} 12... exd5 {[%clk
0:03:04.6]} 13. Bb2 {[%clk 0:03:12.4]} 13... dxc4 {[%clk 0:03:01.4]} 14. d5
{[%clk 0:03:12.3]} 14... cxb3 {[%clk 0:03:01.2]} 15. axb3 {[%clk 0:03:12.3]}
15... Bd6 {[%clk 0:02:46.3]} 16. Nb5 {[%clk 0:03:04.5]} 16... Bb8 {[%clk
0:02:44.7]} 17. Ng5 {[%clk 0:03:02.8]} 17... g6 {[%clk 0:02:40.1]} 18. Qc3
{[%clk 0:03:01]} 18... Kg7 {[%clk 0:02:33.2]} 19. Ne4 {[%clk 0:02:59.1]} 1-0

[Event "*** Titled Tuesday Blitz AM"]
[Site "Chess.com"]
[Date "2020.01.07"]
[Round "2"]
[White "Eliwood44"]
[Black "adriangschnitzer"]
[Result "0-1"]
[WhiteElo "2323"]
[BlackElo "2553"]
[TimeControl "180+2"]
[EndTime "9:19:08 PST"]
[Termination "adriangschnitzer won by resignation"]

1. d4 {[%clk 0:03:01.9]} 1... Nf6 {[%clk 0:02:51.2]} 2. Nf3 {[%clk 0:02:57.3]}
2... c5 {[%clk 0:02:51.8]} 3. d5 {[%clk 0:02:58.4]} 3... b5 {[%clk 0:02:53.1]}
4. c3 {[%clk 0:02:59.5]} 4... g6 {[%clk 0:02:52]} 5. e4 {[%clk 0:03:00.3]} 5...
Nxe4 {[%clk 0:02:47.2]} 6. Bxb5 {[%clk 0:03:00.5]} 6... Bg7 {[%clk 0:02:47.5]}
7. O-O {[%clk 0:03:00.9]} 7... O-O {[%clk 0:02:47.3]} 8. Re1 {[%clk 0:03:02.2]}
8... Nf6 {[%clk 0:02:45.3]} 9. c4 {[%clk 0:02:58.1]} 9... d6 {[%clk 0:02:42.1]}
10. Nc3 {[%clk 0:02:58.9]} 10... Bg4 {[%clk 0:02:35.8]} 11. h3 {[%clk
0:02:59.4]} 11... Bxf3 {[%clk 0:02:35.3]} 12. Qxf3 {[%clk 0:03:01.3]} 12... Nbd7
{[%clk 0:02:35.7]} 13. Bf4 {[%clk 0:03:01.9]} 13... Nh5 {[%clk 0:02:32.9]} 14.
Bh2 {[%clk 0:02:58.7]} 14... Ne5 {[%clk 0:02:32.7]} 15. Qd1 {[%clk 0:02:52.5]}
15... a6 {[%clk 0:02:30.4]} 16. Bxe5 {[%clk 0:02:53.2]} 16... Bxe5 {[%clk
0:02:29.4]} 17. Bc6 {[%clk 0:02:54.3]} 17... Rb8 {[%clk 0:02:28.9]} 18. Qc2
{[%clk 0:02:46.7]} 18... Qc7 {[%clk 0:02:13.2]} 19. Re2 {[%clk 0:02:39.9]} 19...
Rb4 {[%clk 0:02:08]} 20. Ne4 {[%clk 0:02:29.8]} 20... Rxb2 {[%clk 0:02:04.6]}
21. Qxb2 {[%clk 0:02:30.8]} 21... Bxb2 {[%clk 0:02:05.2]} 22. Rxb2 {[%clk
0:02:32.7]} 22... Rb8 {[%clk 0:02:01.9]} 23. Rab1 {[%clk 0:02:32.3]} 23... Rxb2
{[%clk 0:02:01.6]} 24. Rxb2 {[%clk 0:02:34.2]} 24... Qa5 {[%clk 0:01:59.6]} 25.
Ng3 {[%clk 0:02:25.5]} 25... Nxg3 {[%clk 0:01:39.4]} 26. fxg3 {[%clk 0:02:27.4]}
26... Qc3 {[%clk 0:01:39.8]} 27. Rb8+ {[%clk 0:02:25.9]} 27... Kg7 {[%clk
0:01:40.4]} 28. Rb7 {[%clk 0:02:27.4]} 28... Kf6 {[%clk 0:01:40.1]} 0-1

[Event "*** Titled Tuesday Blitz AM"]
[Site "Chess.com"]
[Date "2020.01.07"]
[Round "2"]
[White "Bulldog167"]
[Black "gpeloui"]
[Result "1-0"]
[WhiteElo "2728"]
[BlackElo "2398"]
[TimeControl "180+2"]
[EndTime "9:19:19 PST"]
[Termination "Bulldog167 won by resignation"]

1. d4 {[%clk 0:03:01.9]} 1... Nf6 {[%clk 0:02:59.2]} 2. c4 {[%clk 0:03:03.4]}
2... e6 {[%clk 0:02:59]} 3. Nf3 {[%clk 0:03:04.6]} 3... d5 {[%clk 0:02:58.2]} 4.
Nc3 {[%clk 0:03:06.1]} 4... c5 {[%clk 0:02:57.9]} 5. Bg5 {[%clk 0:03:06.6]} 5...
cxd4 {[%clk 0:02:55.5]} 6. Qxd4 {[%clk 0:03:07.5]} 6... Nc6 {[%clk 0:02:55.9]}
7. Bxf6 {[%clk 0:03:08.8]} 7... gxf6 {[%clk 0:02:41.6]} 8. Qh4 {[%clk
0:03:09.9]} 8... d4 {[%clk 0:02:40.3]} 9. O-O-O {[%clk 0:03:10.9]} 9... Be7
{[%clk 0:02:32.1]} 10. e3 {[%clk 0:03:00.1]} 10... f5 {[%clk 0:02:31.9]} 11. Qh5
{[%clk 0:02:57]} 11... Qa5 {[%clk 0:02:15.6]} 12. Nxd4 {[%clk 0:02:36]} 12...
Nb4 {[%clk 0:02:08.2]} 13. a3 {[%clk 0:02:24.9]} 13... Na6 {[%clk 0:02:08.5]}
14. Ndb5 {[%clk 0:02:17.5]} 14... Bd7 {[%clk 0:01:58.1]} 15. Be2 {[%clk
0:02:11]} 15... Bxb5 {[%clk 0:01:57]} 16. Nxb5 {[%clk 0:02:09.3]} 16... Rc8
{[%clk 0:01:54.3]} 17. Kb1 {[%clk 0:02:05.9]} 17... Nc5 {[%clk 0:01:40.6]} 18.
Nd6+ {[%clk 0:01:39.6]} 18... Bxd6 {[%clk 0:01:40.1]} 19. Rxd6 {[%clk
0:01:41.5]} 19... Ne4 {[%clk 0:01:41.5]} 20. Rxe6+ {[%clk 0:01:42.4]} 20... Kf8
{[%clk 0:01:36.2]} 21. Rxe4 {[%clk 0:01:41.4]} 1-0

[Event "*** Titled Tuesday Blitz AM"]
[Site "Chess.com"]
[Date "2020.01.07"]
[Round "2"]
[White "PaulfromSPb"]
[Black "TBergh98"]
[Result "1-0"]
[WhiteElo "2683"]
[BlackElo "2362"]
[TimeControl "180+2"]
[EndTime "9:19:37 PST"]
[Termination "PaulfromSPb won by resignation"]

1. e4 {[%clk 0:03:01.9]} 1... Nf6 {[%clk 0:03:01.3]} 2. e5 {[%clk 0:03:01.2]}
2... Nd5 {[%clk 0:03:02.5]} 3. d4 {[%clk 0:03:02.6]} 3... d6 {[%clk 0:03:03.7]}
4. Nf3 {[%clk 0:03:03.4]} 4... dxe5 {[%clk 0:03:04.8]} 5. Nxe5 {[%clk
0:03:03.8]} 5... c6 {[%clk 0:03:06.3]} 6. c4 {[%clk 0:03:02.1]} 6... Nb4 {[%clk
0:03:07.3]} 7. Be3 {[%clk 0:02:49.8]} 7... Bf5 {[%clk 0:03:08]} 8. Na3 {[%clk
0:02:50.1]} 8... Nd7 {[%clk 0:03:09.2]} 9. Qb3 {[%clk 0:02:41.4]} 9... Qa5
{[%clk 0:02:41.8]} 10. Bd2 {[%clk 0:02:37.6]} 10... e6 {[%clk 0:02:35.3]} 11.
Nxd7 {[%clk 0:02:33.3]} 11... Kxd7 {[%clk 0:02:37.2]} 12. c5 {[%clk 0:02:27.5]}
12... Qc7 {[%clk 0:02:02.9]} 13. Qxb4 {[%clk 0:02:25.7]} 13... Be7 {[%clk
0:02:03.5]} 14. Nc4 {[%clk 0:02:26]} 14... Rhd8 {[%clk 0:02:03.1]} 15. Nd6
{[%clk 0:02:21.4]} 15... Bxd6 {[%clk 0:01:56.8]} 16. cxd6 {[%clk 0:02:23.3]}
16... Qxd6 {[%clk 0:01:57.3]} 17. Qxd6+ {[%clk 0:02:20.1]} 17... Kxd6 {[%clk
0:01:59.2]} 18. O-O-O {[%clk 0:02:20.6]} 18... Ke7 {[%clk 0:01:59.6]} 19. Bb4+
{[%clk 0:02:20.1]} 19... Ke8 {[%clk 0:01:59.7]} 20. Be2 {[%clk 0:02:20.2]} 20...
Rac8 {[%clk 0:02:00.3]} 21. g4 {[%clk 0:02:19.4]} 21... Bg6 {[%clk 0:02:01.1]}
22. h4 {[%clk 0:02:19.1]} 22... h6 {[%clk 0:01:56]} 23. h5 {[%clk 0:02:19.1]}
23... Bh7 {[%clk 0:01:57]} 24. Rhg1 {[%clk 0:02:19.3]} 24... b6 {[%clk
0:01:43.7]} 25. g5 {[%clk 0:02:18.9]} 25... hxg5 {[%clk 0:01:43.1]} 26. Rxg5
{[%clk 0:02:19]} 26... c5 {[%clk 0:01:43.9]} 27. dxc5 {[%clk 0:02:17.6]} 27...
a5 {[%clk 0:01:38.4]} 28. Ba3 {[%clk 0:02:10.4]} 28... bxc5 {[%clk 0:01:35.2]}
29. Rxg7 {[%clk 0:02:08.7]} 29... Bf5 {[%clk 0:01:32.5]} 30. Rg8+ {[%clk
0:02:05.7]} 30... Ke7 {[%clk 0:01:33.6]} 31. Rdxd8 {[%clk 0:02:05]} 31... Rxd8
{[%clk 0:01:35.5]} 1-0

[Event "*** Titled Tuesday Blitz AM"]
[Site "Chess.com"]
[Date "2020.01.07"]
[Round "2"]
[White "arminmusovic"]
[Black "Saitama_Hero"]
[Result "1/2-1/2"]
[WhiteElo "2516"]
[BlackElo "2303"]
[TimeControl "180+2"]
[EndTime "9:19:45 PST"]
[Termination "Game drawn by agreement"]

1. a3 {[%clk 0:03:01.9]} 1... c5 {[%clk 0:02:52.3]} 2. Nc3 {[%clk 0:03:02]} 2...
Nc6 {[%clk 0:02:44.2]} 3. b4 {[%clk 0:03:02.8]} 3... cxb4 {[%clk 0:02:43.7]} 4.
axb4 {[%clk 0:03:04.7]} 4... Nxb4 {[%clk 0:02:44.9]} 5. Ba3 {[%clk 0:03:05.5]}
5... e6 {[%clk 0:02:45]} 6. e4 {[%clk 0:03:05.6]} 6... Be7 {[%clk 0:02:38.8]} 7.
e5 {[%clk 0:02:59.2]} 7... Nc6 {[%clk 0:02:37.4]} 8. Ne4 {[%clk 0:02:55.9]} 8...
Nxe5 {[%clk 0:02:35.6]} 9. Nf3 {[%clk 0:02:55.6]} 9... Nxf3+ {[%clk 0:02:34.1]}
10. Qxf3 {[%clk 0:02:56.3]} 10... d5 {[%clk 0:02:27.7]} 11. Nc5 {[%clk
0:02:32.9]} 11... a6 {[%clk 0:02:21.4]} 12. Qg3 {[%clk 0:02:22.3]} 12... Bf6
{[%clk 0:02:12.9]} 13. c3 {[%clk 0:02:11.2]} 13... Ne7 {[%clk 0:02:13.9]} 14. h4
{[%clk 0:01:52.5]} 14... O-O {[%clk 0:02:08.2]} 15. Bd3 {[%clk 0:01:48.1]} 15...
e5 {[%clk 0:02:03.3]} 16. h5 {[%clk 0:01:38.3]} 16... e4 {[%clk 0:02:02.9]} 17.
Be2 {[%clk 0:01:38.2]} 17... Nf5 {[%clk 0:01:58]} 18. Qh2 {[%clk 0:01:39.4]}
18... Re8 {[%clk 0:01:56.4]} 19. h6 {[%clk 0:01:26.1]} 19... g6 {[%clk
0:01:54.6]} 20. O-O {[%clk 0:01:19.8]} 20... Be5 {[%clk 0:01:49.2]} 21. Qh1
{[%clk 0:01:19.5]} 21... Qg5 {[%clk 0:01:44.5]} 22. Bc1 {[%clk 0:01:07.9]}
1/2-1/2

[Event "*** Titled Tuesday Blitz AM"]
[Site "Chess.com"]
[Date "2020.01.07"]
[Round "2"]
[White "StephenDedalus83"]
[Black "Daniel-2003"]
[Result "0-1"]
[WhiteElo "2702"]
[BlackElo "2335"]
[TimeControl "180+2"]
[EndTime "9:19:50 PST"]
[Termination "Daniel-2003 won by resignation"]

1. e4 {[%clk 0:03:01.9]} 1... c5 {[%clk 0:03:00.8]} 2. Nf3 {[%clk 0:03:02.7]}
2... e6 {[%clk 0:03:00.7]} 3. d4 {[%clk 0:03:04]} 3... cxd4 {[%clk 0:03:02.3]}
4. Nxd4 {[%clk 0:03:05.4]} 4... Nc6 {[%clk 0:03:01.9]} 5. Nc3 {[%clk 0:03:06.2]}
5... Nf6 {[%clk 0:03:01.2]} 6. Ndb5 {[%clk 0:03:06]} 6... d6 {[%clk 0:02:59.8]}
7. Bf4 {[%clk 0:03:06.8]} 7... e5 {[%clk 0:02:59.5]} 8. Bg5 {[%clk 0:03:07.7]}
8... a6 {[%clk 0:03:01.2]} 9. Na3 {[%clk 0:03:08.8]} 9... b5 {[%clk 0:02:55.2]}
10. Nd5 {[%clk 0:03:10.1]} 10... Be7 {[%clk 0:02:54.1]} 11. Bxf6 {[%clk
0:03:11.6]} 11... Bxf6 {[%clk 0:02:54.2]} 12. c3 {[%clk 0:03:13.2]} 12... O-O
{[%clk 0:02:52.1]} 13. Nc2 {[%clk 0:03:13.8]} 13... Rb8 {[%clk 0:02:48.1]} 14.
h4 {[%clk 0:03:13.4]} 14... Be7 {[%clk 0:02:44.5]} 15. g3 {[%clk 0:03:11.7]}
15... Be6 {[%clk 0:02:42.9]} 16. Nce3 {[%clk 0:03:00.6]} 16... Qd7 {[%clk
0:02:41.6]} 17. a4 {[%clk 0:02:46.1]} 17... Bd8 {[%clk 0:02:38.8]} 18. axb5
{[%clk 0:02:42.4]} 18... axb5 {[%clk 0:02:40.7]} 19. Ra6 {[%clk 0:02:39.2]}
19... Qc8 {[%clk 0:02:37.7]} 20. Qa1 {[%clk 0:02:34.3]} 20... b4 {[%clk
0:02:34.7]} 21. Bc4 {[%clk 0:02:19.7]} 21... Bxd5 {[%clk 0:02:31.4]} 22. Bxd5
{[%clk 0:02:14.4]} 22... Ne7 {[%clk 0:02:28.8]} 23. Nc4 {[%clk 0:01:24.7]} 23...
Nxd5 {[%clk 0:02:25.7]} 24. Nxd6 {[%clk 0:01:24.9]} 24... Qc5 {[%clk 0:02:24]}
25. exd5 {[%clk 0:01:24.1]} 25... Bb6 {[%clk 0:02:21.1]} 26. Ne4 {[%clk
0:01:06.4]} 26... Qxd5 {[%clk 0:02:18.7]} 27. f3 {[%clk 0:00:59.8]} 27... Qd3
{[%clk 0:02:12.5]} 28. Qd1 {[%clk 0:00:59.6]} 28... Qxa6 {[%clk 0:02:09.2]} 0-1